fUST/lending_fUST_20250217
["ID","MTS","AMOUNT","RATE_DAILY","PERIOD"]
[353376712,1739805042480,-500.0,0.00011452,2]
[353376715,1739805042490,-500.0,0.00011452,2]
[353376718,1739805042499,-799.82434349,0.00011515,2]
[353376721,1739805042509,-500.0,0.00011534,2]
[353376724,1739805042518,-500.0,0.00011534,2]
[353376727,1739805042530,-718.36,0.00011534,2]
[353376730,1739805042539,-567.05,0.00011534,2]
[353376732,1739805042549,-2587.73,0.00011534,2]
[353376734,1739805042558,-500.0,0.00011534,2]
[353376736,1739805042568,-648.57,0.00011534,2]
[353376738,1739805042577,-621.13,0.00011534,2]
[353376740,1739805042587,-799.82434349,0.00011615,2]
[353376742,1739805042597,-703.0,0.00011615,2]
[353376745,1739805042606,-156.83,0.00011616,2]
[353376748,1739805042615,-379.86620587,0.00011616,2]
[353376750,1739805042625,-718.36,0.00011616,2]
[353376752,1739805042635,-567.05,0.00011616,2]
[353376754,1739805042645,-2587.73,0.00011616,2]
[353376756,1739805042655,-500.0,0.00011616,2]
[353376757,1739805042665,-718.36,0.00011698,2]
[353376758,1739805042675,-567.05,0.00011698,2]
[353376760,1739805042685,-2587.73,0.00011698,2]
[353376762,1739805042695,-500.0,0.00011698,2]
[353376763,1739805042705,-799.82434349,0.00011715,2]
[353376764,1739805042714,-718.36,0.0001178,2]
[353376765,1739805042724,-567.05,0.0001178,2]
[353376766,1739805042733,-2587.73,0.0001178,2]
[353376767,1739805042743,-544.19,0.0001178,2]
[353376768,1739805042753,-799.82434349,0.00011815,2]
[353376769,1739805042763,-718.36,0.00011863,2]
[353376770,1739805042773,-567.05,0.00011863,2]
[353376771,1739805042784,-2587.73,0.00011863,2]
[353376772,1739805042794,-799.82434349,0.00011915,2]
[353376773,1739805042803,-703.0,0.00011944,2]
[353376774,1739805042813,-718.36,0.00011945,2]
[353376775,1739805042823,-567.05,0.00011945,2]
[353376776,1739805042832,-2587.73,0.00011945,2]
[353376777,1739805042842,-799.82434349,0.00012015,2]
[353376778,1739805042851,-718.36,0.00012027,2]
[353376779,1739805042861,-567.05,0.00012027,2]
[353376780,1739805042870,-2587.73,0.00012027,2]
[353376781,1739805042880,-718.36,0.00012109,2]
[353376782,1739805042889,-567.05,0.00012109,2]
[353376783,1739805042899,-2587.73,0.00012109,2]
[353376784,1739805042908,-799.82434349,0.00012115,2]
[353376785,1739805042918,-718.36,0.00012191,2]
[353376786,1739805042927,-567.05,0.00012191,2]
[353376787,1739805042936,-2587.73,0.00012191,2]
[353376788,1739805042946,-799.82434349,0.00012215,2]
[353376789,1739805042955,-703.0,0.00012272,2]
[353376790,1739805042965,-718.36,0.00012273,2]
[353376791,1739805042974,-567.05,0.00012273,2]
[353376792,1739805042984,-2587.73,0.00012273,2]
[353376793,1739805042994,-6628.88889691,0.00012288,2]
[353376794,1739805043003,-799.82434349,0.00012315,2]
[353376795,1739805043013,-166.0,0.00012329,2]
[353376796,1739805043022,-718.36,0.00012356,2]
[353376797,1739805043033,-567.05,0.00012356,2]
[353376798,1739805043042,-2587.73,0.00012356,2]
[353376799,1739805043052,-3000.0,0.000124,2]
[353376800,1739805043062,-6027.94,0.000124,2]
[353376801,1739805043071,-1140.26106688,0.000124,2]
[353376802,1739805043082,-799.82434349,0.00012415,2]
[353376803,1739805043092,-703.0,0.00012437,2]
[353376804,1739805043102,-718.36,0.00012438,2]
[353376805,1739805043111,-567.05,0.00012438,2]
[353376806,1739805043122,-2587.73,0.00012438,2]
[353376807,1739805043131,-703.0,0.00012499,2]
[353376808,1739805043141,-703.0,0.00012499,2]
[353376809,1739805043150,-703.0,0.00012499,2]
[353376810,1739805043161,-703.0,0.00012499,2]
[353376811,1739805043171,-703.0,0.00012499,2]
[353376812,1739805043180,-703.0,0.00012499,2]
[353376813,1739805043189,-703.0,0.00012499,2]
[353376814,1739805043198,-703.0,0.00012499,2]
[353376815,1739805043207,-703.0,0.00012499,2]
[353376816,1739805043217,-13988.0138818,0.000125,5]
[353376817,1739805043226,-3118.07523597,0.000125,5]
[353376818,1739805043235,-32932.04264824,0.000125,5]
[353376836,1739805043455,-17644.94243088,0.000125,5]
[353376845,1739805043507,-500.0,0.00011205,2]
[353376848,1739805043518,-527.49,0.00011287,2]
[353376850,1739805043529,-12118.61593665,0.000125,5]
[353376853,1739805043549,-177692.36023944,0.000125,5]
[353376941,1739806030093,-281.20317066,9.781e-05,2]
[353376942,1739806031186,-18.79682934,9.781e-05,2]
[353376943,1739806031208,-250.0,9.931e-05,2]
[353376944,1739806031230,-300.0,0.00010081,2]
[353376945,1739806031252,-72.12678454,0.00010082,2]
[353376946,1739806041109,-4883.37967929,0.00010082,2]
[353376953,1739806114908,1032.40704363,0.00016478,90]
[353376962,1739806147260,-1143.5310146,9.881e-05,2]
[353376963,1739806154164,-31.36002943,9.881e-05,2]
[353376964,1739806154189,-300.0,9.98e-05,2]
[353376965,1739806154214,-18062.0086016,9.981e-05,2]
[353376966,1739806154239,-19545.88366034,0.00010082,2]
[353376967,1739806154281,-398.60987583,0.00010082,2]
[353376968,1739806154308,-400.0,0.00010685,2]
[353376972,1739806161984,961.22475597,0.00010848,2]
[353377020,1739806232208,-339.0013,0.00010958,2]
[353377021,1739806232218,-448.81009863,0.00010958,2]
[353377022,1739806232227,-168.64908552,0.00010958,2]
[353377024,1739806232238,-331.35091448,0.00010958,2]
[353377025,1739806232248,-500.0,0.00010958,2]
[353377026,1739806232258,-151.01949465,0.00010958,2]
[353377027,1739806232267,-500.0,0.00010958,2]
[353377028,1739806232277,-500.0,0.00010958,2]
[353377029,1739806232286,-500.0,0.00010958,2]
[353377030,1739806232296,-500.0,0.00010958,2]
[353377031,1739806232305,-500.0,0.00010958,2]
[353377032,1739806232314,-500.0,0.00010958,2]
[353377033,1739806232324,-500.0,0.00010958,2]
[353377034,1739806232335,-168.08902446,0.00010958,2]
[353377035,1739806232344,-500.0,0.00010958,2]
[353377036,1739806232353,-500.0,0.00010958,2]
[353377037,1739806232362,-500.0,0.00010958,2]
[353377038,1739806232372,-500.0,0.00010958,2]
[353377039,1739806232380,-500.0,0.00010958,2]
[353377040,1739806232390,-419.26062493,0.00010958,2]
[353377041,1739806232399,-500.0,0.00010958,2]
[353377042,1739806232408,-500.0,0.00010958,2]
[353377044,1739806232417,-500.0,0.00010958,2]
[353377046,1739806232426,-500.0,0.00010958,2]
[353377048,1739806232435,-500.0,0.00010958,2]
[353377050,1739806232445,-500.0,0.00010958,2]
[353377052,1739806232454,-500.0,0.00010958,2]
[353377054,1739806232464,-1039.73,0.00010958,2]
[353377056,1739806232474,-500.0,0.00010958,2]
[353377058,1739806232485,-500.0,0.00010958,2]
[353377060,1739806232495,-500.0,0.00010958,2]
[353377062,1739806232505,-500.0,0.00010958,2]
[353377063,1739806232515,-500.0,0.00010958,2]
[353377064,1739806232525,-500.0,0.00010958,2]
[353377065,1739806232534,-500.0,0.00010958,2]
[353377066,1739806232544,-500.0,0.00010958,2]
[353377067,1739806232554,-521.22,0.00010958,2]
[353377068,1739806232564,-500.0,0.00010958,2]
[353377069,1739806232573,-500.0,0.00010958,2]
[353377070,1739806232583,-500.0,0.00010958,2]
[353377071,1739806232594,-500.0,0.00010958,2]
[353377072,1739806232604,-539.94,0.00010958,2]
[353377073,1739806232614,-500.0,0.00011039,2]
[353377074,1739806232623,-502.82259544,0.0001104,2]
[353377075,1739806232633,-500.0,0.0001104,2]
[353377076,1739806232643,-303.95570992,0.0001104,2]
[353377077,1739806232653,-500.0,0.0001104,2]
[353377078,1739806232662,-500.0,0.0001104,2]
[353377079,1739806232672,-369.4019491,0.0001104,2]
[353377080,1739806232682,-592.82381836,0.0001104,2]
[353377081,1739806232691,-500.0,0.0001104,2]
[353377082,1739806232701,-181.55312914,0.0001104,2]
[353377083,1739806232710,-500.0,0.0001104,2]
[353377084,1739806232719,-501.60840089,0.0001104,2]
[353377085,1739806232730,-500.0,0.0001104,2]
[353377086,1739806232739,-512.81885195,0.0001104,2]
[353377087,1739806232749,-500.0,0.0001104,2]
[353377088,1739806232758,-500.0,0.00011041,2]
[353377089,1739806232768,-500.0,0.00011041,2]
[353377090,1739806232777,-364.40548668,0.00011041,2]
[353377091,1739806232790,-73.80451332,0.00011041,2]
[353377092,1739806232799,-500.0,0.00011041,2]
[353377093,1739806232810,-283.27,0.00011041,2]
[353377094,1739806232819,-500.0,0.00011041,2]
[353377095,1739806232828,-500.0,0.00011041,2]
[353377096,1739806232841,-500.0,0.00011041,2]
[353377097,1739806232851,-392.92548668,0.00011041,2]
[353377098,1739806232862,-107.07451332,0.00011041,2]
[353377099,1739806232871,-500.0,0.00011041,2]
[353377100,1739806232881,-500.0,0.00011041,2]
[353377101,1739806232891,-664.74560125,0.00011041,2]
[353377146,1739806238177,-374.98439875,0.00011041,2]
[353377148,1739806238187,-500.0,0.00011041,2]
[353377150,1739806238197,-500.0,0.00011041,2]
[353377152,1739806238206,-500.0,0.00011041,2]
[353377155,1739806238217,-500.0,0.00011041,2]
[353377157,1739806238226,-500.0,0.00011041,2]
[353377159,1739806238236,-521.22,0.00011041,2]
[353377161,1739806238245,-500.0,0.00011123,2]
[353377163,1739806238254,-500.0,0.00011123,2]
[353377165,1739806238263,-500.0,0.00011123,2]
[353377167,1739806238272,-500.0,0.00011123,2]
[353377169,1739806238281,-367.79862777,0.00011123,2]
[353377218,1739806240267,-273.60137223,0.00011123,2]
[353377219,1739806240277,-138.22632077,0.00011123,2]
[353377233,1739806249031,-500.0,0.00010958,2]
[353377234,1739806249041,-500.0,0.00011041,2]
[353377235,1739806249052,-361.77367923,0.00011123,2]
[353377236,1739806249063,-500.0,0.00011123,2]
[353377237,1739806249073,-1039.73,0.00011123,2]
[353377238,1739806249084,-500.0,0.00011123,2]
[353377239,1739806249098,-500.0,0.00011123,2]
[353377240,1739806249114,-500.0,0.00011123,2]
[353377241,1739806249125,-500.0,0.00011123,2]
[353377242,1739806249135,-500.0,0.00011123,2]
[353377243,1739806249145,-521.22,0.00011123,2]
[353377244,1739806249156,-500.0,0.00011123,2]
[353377245,1739806249168,-500.0,0.00011205,2]
[353377246,1739806249179,-500.0,0.00011205,2]
[353377247,1739806249190,-173.43,0.00011205,2]
[353377248,1739806249200,-500.0,0.00011205,2]
[353377249,1739806249211,-1039.73,0.00011205,2]
[353377250,1739806249222,-500.0,0.00011205,2]
[353377251,1739806249232,-500.0,0.00011205,2]
[353377252,1739806249242,-398.1081591,0.00011205,2]
[353377253,1739806249252,-500.0,0.00011205,2]
[353377254,1739806249263,-594.34,0.00011205,2]
[353377255,1739806249273,-521.22,0.00011205,2]
[353377256,1739806249282,-396.64476949,0.00011205,2]
[353377257,1739806249292,-500.0,0.00011287,2]
[353377258,1739806249301,-500.0,0.00011287,2]
[353377259,1739806249311,-500.0,0.00011287,2]
[353377260,1739806249322,-1039.73,0.00011287,2]
[353377261,1739806249333,-500.0,0.00011287,2]
[353377262,1739806249343,-500.0,0.00011287,2]
[353377263,1739806249354,-280.53,0.00011287,2]
[353377264,1739806249365,-521.22,0.00011287,2]
[353377265,1739806249375,-500.0,0.00011369,2]
[353377266,1739806249385,-500.0,0.00011369,2]
[353377267,1739806249395,-500.0,0.00011369,2]
[353377268,1739806249405,-1039.73,0.00011369,2]
[353377269,1739806249415,-500.0,0.00011369,2]
[353377270,1739806249424,-585.95,0.00011369,2]
[353377271,1739806249435,-521.22,0.00011369,2]
[353377272,1739806249445,-500.0,0.00011451,2]
[353377273,1739806249456,-500.0,0.00011452,2]
[353377274,1739806249466,-500.0,0.00011452,2]
[353377275,1739806249476,-1039.73,0.00011452,2]
[353377276,1739806249489,-500.0,0.00011452,2]
[353377277,1739806249498,-521.22,0.00011452,2]
[353377278,1739806249508,-591.93919793,0.00011533,2]
[353377279,1739806249519,-500.0,0.00011534,2]
[353377280,1739806249529,-500.0,0.00011534,2]
[353377281,1739806249539,-1039.73,0.00011534,2]
[353377282,1739806249548,-500.0,0.00011534,2]
[353377283,1739806249558,-521.22,0.00011534,2]
[353377284,1739806249570,-355.0956536,0.00011534,2]
[353377285,1739806249580,-355.0956536,0.00011534,2]
[353377286,1739806249591,-355.0956536,0.00011534,2]
[353377287,1739806249602,-355.0956536,0.00011534,2]
[353377288,1739806249612,-355.0956536,0.00011534,2]
[353377289,1739806249622,-355.0956536,0.000116,2]
[353377290,1739806249632,-500.0,0.00011616,2]
[353377291,1739806249642,-500.0,0.00011616,2]
[353377292,1739806249652,-1039.73,0.00011616,2]
[353377293,1739806249661,-500.0,0.00011616,2]
[353377294,1739806249671,-521.22,0.00011616,2]
[353377295,1739806249680,-500.0,0.00011698,2]
[353377296,1739806249691,-317.32,0.00011698,2]
[353377297,1739806249700,-1039.73,0.00011698,2]
[353377298,1739806249710,-500.0,0.00011698,2]
[353377299,1739806249720,-521.22,0.00011698,2]
[353377300,1739806249729,-633.46997242,0.0001178,2]
[353377301,1739806249738,-1039.73,0.0001178,2]
[353377302,1739806249748,-500.0,0.0001178,2]
[353377303,1739806249758,-521.22,0.0001178,2]
[353377304,1739806249768,-1039.73,0.00011863,2]
[353377305,1739806249778,-470.84464018,0.00011863,2]
[353377306,1739806249787,-521.22,0.00011863,2]
[353377307,1739806249797,-1039.73,0.00011945,2]
[353377308,1739806249807,-521.22,0.00011945,2]
[353377309,1739806249816,-1039.73,0.00012027,2]
[353377310,1739806249826,-521.22,0.00012027,2]
[353377311,1739806249836,-399.60135,0.00012108,2]
[353377312,1739806249846,-500.0,0.00012108,2]
[353377313,1739806249856,-170.81790271,0.00012108,2]
[353377314,1739806249866,-500.0,0.00012108,2]
[353377315,1739806249876,-1039.73,0.00012109,2]
[353377316,1739806249885,-521.22,0.00012109,2]
[353377317,1739806249895,-1039.73,0.00012191,2]
[353377318,1739806249904,-521.22,0.00012191,2]
[353377319,1739806249913,-711.6357211,0.00012247,2]
[353377320,1739806249923,-1407.2723629,0.00012249,2]
[353377321,1739806249932,-1039.73,0.00012273,2]
[353377322,1739806249941,-521.22,0.00012273,2]
[353377323,1739806249951,-7438.69753278,0.00012306,2]
[353377324,1739806249960,-166.0,0.00012329,2]
[353377325,1739806249970,-1039.73,0.00012356,2]
[353377326,1739806249979,-521.22,0.00012356,2]
[353377327,1739806249988,-3000.0,0.000124,2]
[353377328,1739806250104,-10000.0,0.000124,2]
[353377329,1739806250114,-38638.37539949,0.000124,2]
[353377330,1739806250125,-1311.44150985,0.000124,2]
[353377331,1739806250134,-4193.72509523,0.000124,2]
[353377332,1739806250144,-488.644,0.00012438,2]
[353377333,1739806250154,-1039.73,0.00012438,2]
[353377334,1739806250163,-521.22,0.00012438,2]
[353377335,1739806250174,-355.0956536,0.00012493,2]
[353377336,1739806250184,-355.0956536,0.00012493,2]
[353377337,1739806250195,-355.0956536,0.00012493,2]
[353377338,1739806250206,-564.76954208,0.00012498,2]
[353377339,1739806250216,-223.99246179,0.00012498,2]
[353377340,1739806250226,-645.17024088,0.00012499,2]
[353377341,1739806250235,-8210.74637391,0.000125,5]
[353377342,1739806250252,-28066.80028848,0.000125,5]
[353377343,1739806250483,373.15858938,0.00010848,2]
[353377345,1739806349817,185.701107,0.00010544,2]
[353377346,1739806350224,185.701107,0.0001057,2]
[353377347,1739806350457,185.701107,0.00010597,2]
[353377350,1739807134133,-1384.40720351,9.661e-05,2]
[353377351,1739807227248,-1628.66169375,9.661e-05,2]
[353377352,1739807227270,-2110.78964724,9.759e-05,2]
[353377355,1739807238122,-902.27925002,9.661e-05,2]
[353377356,1739807238145,-902.27925002,9.759e-05,2]
[353377357,1739807238169,-157.18049996,9.999e-05,2]
[353377359,1739807242088,-142.81950004,9.999e-05,2]
[353377360,1739807242109,-163.013626,0.0001,2]
[353377361,1739807245097,-414.00204486,0.0001,2]
[353377362,1739807256589,1000.0,0.00019,120]
[353377363,1739807348075,-1943.2107785,9.9e-05,2]
[353377364,1739807348097,-300.0,9.999e-05,2]
[353377365,1739807348118,-18453.19439928,0.0001,2]
[353377367,1739807353188,-7646.78992986,0.0001,2]
[353377368,1739807353212,-24900.0,0.00010059,2]
[353377369,1739807353238,-400.0,0.00010685,2]
[353377370,1739807354145,-722.6425565,0.00010858,2]
[353377371,1739807355446,5000.0,9.9e-05,2]
[353377372,1739807357104,-346.09340745,0.00010957,2]
[353377373,1739807357124,-500.0,0.00010957,2]
[353377374,1739807357145,-500.0,0.00010957,2]
[353377375,1739807357169,-500.0,0.00010957,2]
[353377376,1739807357192,-517.89315317,0.00010957,2]
[353377377,1739807357219,-217.02477985,0.00010957,2]
[353377378,1739807357244,-500.0,0.00010957,2]
[353377379,1739807357270,-500.0,0.00010957,2]
[353377380,1739807357295,-500.0,0.00010957,2]
[353377381,1739807357317,-469.78020255,0.00010957,2]
[353377382,1739807357342,-500.0,0.00010957,2]
[353377383,1739807357367,-500.0,0.00010957,2]
[353377384,1739807357390,-508.58772399,0.00010957,2]
[353377385,1739807357414,-500.0,0.00010957,2]
[353377386,1739807357438,-500.0,0.00010957,2]
[353377387,1739807357460,-500.0,0.00010957,2]
[353377388,1739807357486,-301.58680854,0.00010957,2]
[353377390,1739807369105,-198.41319146,0.00010957,2]
[353377391,1739807369128,-500.0,0.00010957,2]
[353377392,1739807369153,-500.0,0.00010957,2]
[353377393,1739807369175,-203.92135399,0.00010957,2]
[353377433,1739807437230,-296.07864601,0.00010957,2]
[353377435,1739807437240,-500.0,0.00010957,2]
[353377437,1739807437250,-500.0,0.00010957,2]
[353377439,1739807437260,-93.37372244,0.00010957,2]
[353377441,1739807437343,-406.62627756,0.00010957,2]
[353377442,1739807437354,-500.0,0.00010957,2]
[353377443,1739807437365,-500.0,0.00010957,2]
[353377444,1739807437376,-500.0,0.00010957,2]
[353377445,1739807437387,-197.52249918,0.00010957,2]
[353377446,1739807437397,-500.0,0.00010957,2]
[353377447,1739807437407,-500.0,0.00010957,2]
[353377448,1739807437416,-262.82157141,0.00010957,2]
[353377449,1739807437426,-500.0,0.00010958,2]
[353377450,1739807437436,-500.0,0.00010958,2]
[353377451,1739807437446,-500.0,0.00010958,2]
[353377452,1739807437455,-500.0,0.00010958,2]
[353377453,1739807437465,-500.0,0.00010958,2]
[353377454,1739807437475,-500.0,0.00010958,2]
[353377455,1739807437485,-502.89083909,0.00010958,2]
[353377456,1739807437495,-500.0,0.00010958,2]
[353377457,1739807437504,-500.0,0.00010958,2]
[353377458,1739807437514,-501.18545266,0.00010958,2]
[353377459,1739807437524,-500.0,0.00010958,2]
[353377460,1739807437537,-500.0,0.00010958,2]
[353377461,1739807437547,-500.0,0.00010958,2]
[353377462,1739807437557,-648.77990846,0.00010958,2]
[353377463,1739807437567,-500.0,0.00010958,2]
[353377464,1739807437576,-500.0,0.00010958,2]
[353377465,1739807437585,-500.46996186,0.00010958,2]
[353377466,1739807437595,-500.0,0.00010958,2]
[353377467,1739807437605,-500.0,0.00010958,2]
[353377468,1739807437615,-500.48025026,0.00010958,2]
[353377469,1739807437625,-500.0,0.00010958,2]
[353377470,1739807437634,-500.0,0.00010958,2]
[353377472,1739807437644,-500.0,0.00010958,2]
[353377474,1739807437654,-500.0,0.00010958,2]
[353377476,1739807437666,-500.0,0.00010958,2]
[353377479,1739807437676,-500.0,0.00010958,2]
[353377481,1739807437686,-505.28,0.00010958,2]
[353377483,1739807437696,-500.0,0.00010958,2]
[353377485,1739807437706,-500.0,0.00010958,2]
[353377486,1739807437715,-500.23314672,0.00010958,2]
[353377487,1739807437726,-500.0,0.00010958,2]
[353377488,1739807437736,-500.0,0.00010958,2]
[353377489,1739807437746,-500.0,0.00010958,2]
[353377490,1739807437756,-500.0,0.00010958,2]
[353377492,1739807437766,-500.0,0.00010958,2]
[353377494,1739807437776,-500.0,0.00010958,2]
[353377495,1739807437787,-500.0,0.00010958,2]
[353377498,1739807437797,-500.0,0.00010958,2]
[353377500,1739807437807,-500.27597592,0.00010958,2]
[353377503,1739807437817,-500.0,0.00010958,2]
[353377505,1739807437827,-500.0,0.00010958,2]
[353377507,1739807437838,-500.0,0.00010958,2]
[353377508,1739807437848,-500.39622827,0.00010958,2]
[353377509,1739807437857,-500.0,0.00010958,2]
[353377512,1739807437867,-500.0,0.00010958,2]
[353377515,1739807437877,-500.0,0.00010958,2]
[353377518,1739807437887,-504.10359871,0.00010958,2]
[353377520,1739807437899,-500.0,0.00010958,2]
[353377522,1739807437913,-500.57026564,0.00010958,2]
[353377524,1739807437923,-500.0,0.00010958,2]
[353377526,1739807437932,-505.65733272,0.00010958,2]
[353377528,1739807437942,-500.0,0.00010958,2]
[353377530,1739807437953,-500.0,0.00010958,2]
[353377532,1739807437963,-583.27972929,0.00010958,2]
[353377534,1739807437972,-502.39617599,0.00010958,2]
[353377536,1739807437985,-500.40520191,0.00010958,2]
[353377538,1739807437995,-500.0,0.00010958,2]
[353377540,1739807438004,-500.0,0.00010958,2]
[353377542,1739807438013,-500.0,0.00010958,2]
[353377544,1739807438023,-500.0,0.00010958,2]
[353377546,1739807438032,-500.0,0.00010958,2]
[353377548,1739807438043,-500.0,0.00010958,2]
[353377550,1739807438052,-500.0,0.00010958,2]
[353377552,1739807438062,-500.0,0.00010958,2]
[353377554,1739807438072,-500.0,0.00010958,2]
[353377556,1739807438082,-500.0,0.00010958,2]
[353377558,1739807438091,-500.22667173,0.00010958,2]
[353377560,1739807438100,-647.57101861,0.00010958,2]
[353377562,1739807438110,-500.0,0.00010958,2]
[353377564,1739807438119,-500.0,0.00010958,2]
[353377566,1739807438128,-500.0,0.00010958,2]
[353377568,1739807438138,-500.0,0.00010958,2]
[353377569,1739807438148,-500.0,0.00010958,2]
[353377570,1739807438157,-500.0,0.00010958,2]
[353377571,1739807438167,-500.0,0.00010958,2]
[353377572,1739807438176,-500.79973855,0.00010958,2]
[353377573,1739807438186,-500.37136455,0.00010958,2]
[353377575,1739807438195,-502.92849798,0.00010958,2]
[353377582,1739807438310,-500.0,0.00010958,2]
[353377585,1739807438350,-500.0,0.00010958,2]
[353377587,1739807438361,-500.0,0.00010958,2]
[353377588,1739807438371,-502.13889475,0.00010958,2]
[353377589,1739807438380,-500.0,0.00010958,2]
[353377590,1739807438390,-500.0,0.00010958,2]
[353377591,1739807438400,-500.0,0.00010958,2]
[353377592,1739807438410,-500.0,0.00010958,2]
[353377594,1739807438420,-500.0,0.00010958,2]
[353377595,1739807438430,-500.0,0.00010958,2]
[353377598,1739807438440,-501.48012489,0.00010958,2]
[353377600,1739807438452,-500.0,0.00010958,2]
[353377602,1739807438462,-500.0,0.00010958,2]
[353377604,1739807438471,-500.0,0.00010958,2]
[353377606,1739807438481,-500.0,0.00010958,2]
[353377608,1739807438490,-500.0,0.00010958,2]
[353377610,1739807438500,-500.0,0.00010958,2]
[353377612,1739807438509,-500.82378863,0.00010958,2]
[353377614,1739807438518,-500.0,0.00010958,2]
[353377616,1739807438528,-570.61488848,0.00010958,2]
[353377618,1739807438541,-500.0,0.00010958,2]
[353377620,1739807438550,-500.0,0.00010958,2]
[353377622,1739807438560,-500.0,0.00010958,2]
[353377623,1739807438569,-500.0,0.00010958,2]
[353377625,1739807438579,-621.29,0.00010958,2]
[353377627,1739807438589,-500.0,0.00010958,2]
[353377629,1739807438598,-503.7353816,0.00010958,2]
[353377631,1739807438608,-500.0,0.00010958,2]
[353377633,1739807438617,-500.0,0.00010958,2]
[353377635,1739807438627,-500.0,0.00010958,2]
[353377637,1739807438637,-500.0,0.00010958,2]
[353377639,1739807438646,-500.0,0.00010958,2]
[353377641,1739807438656,-500.0,0.00010958,2]
[353377643,1739807438665,-500.0,0.00010958,2]
[353377645,1739807438676,-150.08454876,0.00010958,2]
[353377647,1739807438685,-501.0818335,0.00010958,2]
[353377649,1739807438695,-566.11,0.00010958,2]
[353377651,1739807438705,-500.0,0.00010958,2]
[353377653,1739807438715,-500.0,0.00010958,2]
[353377655,1739807438724,-436.06582553,0.00010958,2]
[353377658,1739807438742,-63.93417447,0.00010958,2]
[353377660,1739807438752,-501.6458459,0.00010958,2]
[353377662,1739807438761,-500.0,0.00010958,2]
[353377664,1739807438771,-509.2325224,0.00010958,2]
[353377666,1739807438780,-500.0,0.00010958,2]
[353377668,1739807438791,-500.0,0.00010958,2]
[353377670,1739807438801,-500.0,0.00010958,2]
[353377672,1739807438810,-500.0,0.00010958,2]
[353377673,1739807438820,-500.0,0.00010958,2]
[353377674,1739807438830,-500.0,0.00010958,2]
[353377675,1739807438839,-564.21894383,0.00010958,2]
[353377676,1739807438848,-500.64947104,0.00010958,2]
[353377677,1739807438858,-500.0,0.00010958,2]
[353377678,1739807438868,-500.0,0.00010958,2]
[353377679,1739807438878,-622.27797111,0.00010958,2]
[353377680,1739807438887,-500.0,0.00010958,2]
[353377681,1739807438897,-500.0,0.00010958,2]
[353377682,1739807438908,-500.66267266,0.00010958,2]
[353377683,1739807438921,-500.0,0.00010958,2]
[353377684,1739807438931,-344.37969803,0.00010958,2]
[353377685,1739807438973,-155.62030197,0.00010958,2]
[353377686,1739807438984,-500.0,0.00010958,2]
[353377687,1739807438996,-500.88818774,0.00010958,2]
[353377688,1739807439006,-500.0,0.00010958,2]
[353377690,1739807439016,-500.21084091,0.00010958,2]
[353377691,1739807439025,-500.0,0.00010958,2]
[353377692,1739807439035,-500.0,0.00010958,2]
[353377693,1739807439045,-500.0,0.00010958,2]
[353377694,1739807439054,-501.20395134,0.00010958,2]
[353377695,1739807439064,-500.0,0.00010958,2]
[353377696,1739807439074,-500.0,0.00010958,2]
[353377698,1739807439084,-500.0,0.00010958,2]
[353377700,1739807439093,-500.0,0.00010958,2]